bitfinex-derivatives/quotes_SOLF0:USTF0_20250514
["timestamp","ask_amount","ask_price","bid_price","bid_amount"]
[1747256095275,56.58,177.35,177.27,56.62]
[1747256095580,56.58,177.35,177.32,5.6383]
[1747256095783,62.2179,177.35,177.27,56.62]
[1747256095982,5.6379,177.35,177.27,56.62]
[1747256096582,5.6379,177.35,177.32,5.6384]
[1747256097184,5.638,177.34,177.32,5.6384]
[1747256097383,5.638,177.34,177.31,5.6388]
[1747256097788,66.44312357,177.38,177.27,56.62]
[1747256098283,5.6388,177.32,177.29,5.6395]
[1747256098583,5.6388,177.32,177.27,56.62]
[1747256098885,5.6388,177.32,177.29,5.6393]
[1747256099186,5.6384,177.33,177.27,56.62]
[1747256099487,5.6384,177.33,177.3,5.639]
[1747256099686,5.6384,177.33,177.27,56.62]
[1747256100486,62.2181,177.34,177.27,56.62]
[1747256100783,56.58,177.34,177.27,56.62]
[1747256101685,56.58,177.37,177.27,56.62]
[1747256102181,5.6374,177.36,177.33,5.6383]
[1747256102385,56.58,177.37,177.33,5.6383]
[1747256102888,5.6379,177.35,177.32,5.6386]
[1747256103089,56.58,177.37,177.26,490.8059]
[1747256103291,56.58,177.37,177.27,113.22]
[1747256103991,5.6382,177.34,177.3,5.6393]
[1747256104193,5.6382,177.34,177.27,113.22]
[1747256104790,5.6382,177.34,177.31,5.6388]
[1747256105793,56.58,177.37,177.27,113.22]
[1747256106487,5.6383,177.33,177.27,113.22]
[1747256107095,5.6381,177.34,177.31,5.6388]
[1747256107598,5.6378,177.35,177.32,5.6385]
[1747256107995,5.6378,177.35,177.27,113.22]
[1747256107996,56.58,177.37,177.27,113.22]
[1747256108295,5.6382,177.34,177.31,5.6388]
[1747256108992,5.6388,177.32,177.29,5.6395]
[1747256109499,56.64,177.39,177.32,5.6386]
[1747256109701,56.84,177.38,177.32,5.6386]
[1747256109997,56.84,177.38,177.27,56.64]
[1747256110198,5.6379,177.35,177.31,5.6388]
[1747256110496,56.64,177.39,177.27,56.64]
[1747256110698,113.62,177.39,177.27,56.64]
[1747256111199,5.6378,177.35,177.31,5.6387]
[1747256111499,5.6378,177.35,177.27,56.64]
[1747256112199,5.6381,177.34,177.27,56.64]
[1747256113100,5.6381,177.34,177.31,5.6387]
[1747256114800,5.6386,177.33,177.29,5.6395]
[1747256115103,1.8032,177.41,177.21,498.5837]
[1747256115104,56.58,177.34,177.23,56.58]
[1747256115296,5.6393,177.3,177.26,5.6402]
[1747256115500,113.66,177.33,177.23,66.44312357]
[1747256115798,57.08,177.33,177.23,66.44312357]
[1747256115999,5.6387,177.32,177.28,5.6398]
[1747256116603,5.639,177.31,177.28,5.6398]
[1747256117404,5.6387,177.32,177.29,5.6396]
[1747256117904,57.08,177.33,177.28,5.6398]
[1747256118104,5.6392,177.31,177.28,5.6398]
[1747256118405,5.6392,177.31,177.27,56.58]
[1747256118406,57.08,177.33,177.27,62.22]
[1747256118905,5.6391,177.31,177.27,56.58]
[1747256119105,5.6391,177.31,177.28,5.6398]
[1747256119304,57.08,177.33,177.27,56.58]
[1747256119801,57.08,177.33,177.28,5.6396]
[1747256120204,5.6391,177.31,177.28,5.6396]
[1747256121805,5.6391,177.31,177.29,5.6395]
[1747256122703,5.6393,177.3,177.28,5.6398]
[1747256122909,57.08,177.33,177.27,56.58]
[1747256123305,5.6395,177.3,177.27,5.6402]
[1747256123609,57.08,177.33,177.27,5.6402]
[1747256123810,5.6398,177.29,177.26,5.6404]
[1747256124210,5.6398,177.29,177.24,56.58]
[1747256124708,5.6394,177.3,177.27,5.64]
[1747256124910,5.6394,177.3,177.24,56.58]
[1747256125508,5.6394,177.3,177.27,5.64]
[1747256125910,5.639,177.31,177.24,56.58]
[1747256126111,57.08,177.33,177.24,56.58]
[1747256126909,5.6393,177.31,177.24,56.58]
[1747256127411,5.6393,177.31,177.28,5.6398]
[1747256128209,57.08,177.33,177.24,56.58]
[1747256128606,9.86312357,177.32,177.24,56.58]
[1747256128804,5.6405,177.27,177.24,62.221]
[1747256133016,5.6405,177.27,177.25,5.6409]
[1747256134116,5.6405,177.27,177.24,62.221]
[1747256135322,66.44312357,177.32,177.24,56.58]
[1747256135323,5.6406,177.26,177.24,56.58]
[1747256135519,66.44312357,177.32,177.24,56.58]
[1747256135821,5.6409,177.25,177.24,56.58]
[1747256136020,56.84,177.28,177.21,492.9419]
[1747256136623,5.6414,177.24,177.21,492.9419]
[1747256137117,5.6417,177.23,177.2,62.4824]
[1747256137322,5.6417,177.23,177.2,56.84]
[1747256137521,56.84,177.28,177.2,56.84]
[1747256138124,56.84,177.28,177.21,5.6419]
[1747256138529,56.84,177.28,177.2,56.84]
[1747256138727,56.84,177.28,177.22,5.6416]
[1747256139025,56.84,177.28,177.2,56.84]
[1747256139226,5.6404,177.27,177.23,5.6412]
[1747256140127,5.6404,177.27,177.24,5.6412]
[1747256143122,5.6406,177.26,177.24,5.6412]
[1747256144931,5.6406,177.26,177.23,5.6414]
[1747256145133,56.84,177.28,177.2,56.84]
[1747256145328,117.4514,177.28,177.2,56.84]
[1747256145527,5.6413,177.24,177.21,5.6419]
[1747256146135,117.4514,177.28,177.21,5.6419]
[1747256146336,117.4514,177.28,177.22,5.6418]
[1747256147037,5.6411,177.25,177.22,5.6418]
[1747256147436,117.4514,177.28,177.2,56.84]
[1747256147736,113.68,177.28,177.21,9.86312357]
[1747256148035,5.6404,177.27,177.21,9.86312357]
[1747256149534,5.64,177.28,177.25,5.6408]
[1747256149737,56.84,177.31,177.21,9.86312357]
[1747256149930,5.6395,177.3,177.21,13.58412357]
[1747256150838,5.6395,177.3,177.26,5.6403]
[1747256151039,5.6396,177.29,177.26,5.6403]
[1747256152436,5.6396,177.29,177.27,5.6402]
[1747256153237,56.84,177.31,177.21,13.58412357]
[1747256153542,117.62,177.34,177.24,66.70312357]
[1747256153735,117.62,177.34,177.25,56.78]
[1747256154038,5.6384,177.33,177.29,5.6393]
[1747256154441,56.84,177.34,177.29,5.6393]
[1747256154640,113.62,177.34,177.29,5.6393]
[1747256155139,113.62,177.34,177.28,5.6398]
[1747256155341,113.62,177.34,177.21,13.58412357]
[1747256155538,113.62,177.34,177.24,56.84]
[1747256155738,113.62,177.34,177.26,5.6405]
[1747256156340,5.6398,177.29,177.26,5.6405]
[1747256157943,5.6398,177.29,177.27,5.6402]
[1747256158842,5.6394,177.3,177.27,5.6402]
[1747256159339,113.62,177.34,177.24,56.84]
[1747256159544,5.6388,177.32,177.24,56.84]
[1747256159837,58.6775,177.35,177.3,5.639]
[1747256160238,58.6775,177.35,177.28,56.84]
[1747256160645,5.6386,177.33,177.29,5.6394]
[1747256161044,1.8975,177.35,177.29,5.6394]
[1747256161243,5.6388,177.32,177.29,5.6394]
[1747256161445,58.6575,177.35,177.3,5.6391]
[1747256161741,5.6385,177.33,177.3,5.6391]
[1747256162249,5.6387,177.32,177.3,5.6391]
[1747256164147,68.52062357,177.35,177.12,9.86312357]
[1747256164347,68.52062357,177.35,177.24,56.84]
[1747256164542,68.52062357,177.35,177.26,5.6403]
[1747256166748,68.52062357,177.35,177.27,5.6401]
[1747256167048,5.6395,177.3,177.27,5.6401]
[1747256170049,5.6395,177.3,177.28,5.6399]
[1747256170553,5.639,177.31,177.28,5.6399]
[1747256170746,5.639,177.31,177.24,56.84]
[1747256171157,5.639,177.31,177.28,5.6397]
[1747256171955,5.6393,177.3,177.28,5.6397]
[1747256173355,5.6393,177.3,177.27,5.6401]
[1747256175261,5.6393,177.3,177.28,5.6398]
[1747256178061,1.8975,177.35,177.3,5.6392]
[1747256178358,56.62,177.34,177.24,56.84]
[1747256178559,56.62,177.34,177.3,5.6392]
[1747256179259,5.6385,177.33,177.31,5.6389]
[1747256179456,56.84,177.37,177.28,56.68]
[1747256179763,56.62,177.36,177.29,56.68]
[1747256179963,5.6378,177.35,177.32,5.6386]
[1747256181065,5.638,177.34,177.31,5.6388]
[1747256181366,113.46,177.37,177.31,5.6388]
[1747256181762,5.6381,177.34,177.31,5.6388]
[1747256182063,5.6381,177.34,177.29,56.68]
[1747256182064,113.46,177.37,177.29,56.68]
[1747256182265,113.46,177.37,177.26,56.68]
[1747256182566,113.46,177.37,177.28,5.6397]
[1747256182867,113.46,177.37,177.26,56.68]
[1747256183766,113.46,177.37,177.28,5.6397]
[1747256184765,5.6393,177.3,177.28,5.6397]
[1747256184965,5.6393,177.3,177.26,62.3202]
[1747256185160,113.46,177.37,177.26,62.3202]
[1747256185464,113.46,177.37,177.26,56.68]
[1747256186065,5.6392,177.31,177.28,5.6399]
[1747256188369,5.6386,177.33,177.26,56.68]
[1747256188565,113.46,177.37,177.26,56.68]
[1747256188867,5.6387,177.32,177.29,5.6393]
[1747256189166,113.46,177.37,177.26,56.68]
[1747256189469,5.6383,177.33,177.3,5.639]
[1747256189869,5.6383,177.33,177.26,56.68]
[1747256191474,5.6383,177.33,177.31,5.6389]
[1747256192175,56.62,177.36,177.28,9.86312357]
[1747256192377,56.62,177.36,177.28,66.48312357]
[1747256192875,3.6439,177.38,177.28,66.48312357]
[1747256193178,5.6372,177.37,177.34,5.6377]
[1747256195077,5.6372,177.37,177.35,5.6376]
[1747256195775,5.6368,177.38,177.35,5.6376]
[1747256196977,5.6371,177.37,177.35,5.6376]
[1747256197878,5.6376,177.36,177.32,56.66]
[1747256198178,56.62,177.39,177.32,56.66]
[1747256198383,56.62,177.39,177.33,5.638]
[1747256198581,5.6376,177.36,177.33,5.638]
[1747256199077,5.6377,177.35,177.33,5.638]
[1747256199482,56.62,177.39,177.32,5.6384]
[1747256199675,5.6376,177.36,177.3,56.6]
[1747256200479,5.6376,177.36,177.33,5.6383]
[1747256200876,5.6377,177.35,177.33,5.6383]
[1747256202077,5.6375,177.36,177.33,5.6383]
[1747256203681,5.6375,177.36,177.34,5.638]
[1747256206985,5.6371,177.37,177.34,5.638]
[1747256207478,56.6,177.39,177.34,5.638]
[1747256207684,5.6369,177.38,177.34,5.638]
[1747256208988,5.6369,177.38,177.3,56.6]
[1747256209188,62.2365,177.39,177.3,56.6]
[1747256209681,5.6361,177.4,177.31,9.86312357]
[1747256210186,5.6361,177.4,177.37,5.6369]
[1747256210391,5.6364,177.39,177.37,5.6369]
[1747256210793,5.6364,177.39,177.35,5.6374]
[1747256211092,5.6364,177.39,177.34,56.6]
[1747256211491,5.6367,177.38,177.34,56.6]
[1747256212393,5.6367,177.38,177.35,5.6375]
[1747256212691,58.5474,177.42,177.34,56.6]
[1747256212992,5.6374,177.36,177.34,56.6]
[1747256213492,56.6,177.4,177.34,56.6]
[1747256213697,5.6372,177.37,177.34,62.2377]
[1747256217297,5.6372,177.37,177.34,68.54615051]
[1747256218992,5.6374,177.36,177.34,62.2377]
[1747256219898,62.90845051,177.4,177.34,62.2377]
[1747256219899,5.6372,177.37,177.34,62.2377]
[1747256220095,1.9474,177.42,177.35,6.30845051]
[1747256220394,5.6363,177.4,177.35,6.30845051]
[1747256220789,5.6363,177.4,177.37,5.6368]
[1747256220993,5.6363,177.4,177.35,6.30845051]
[1747256221398,5.6363,177.4,177.37,6.30845051]
[1747256222600,5.6363,177.4,177.38,5.6366]
[1747256223203,5.6359,177.41,177.38,5.6366]
[1747256224899,5.6361,177.4,177.37,5.6369]
[1747256228210,5.6364,177.39,177.37,5.6369]
[1747256229008,5.6364,177.39,177.36,5.6372]
[1747256229216,1.9474,177.42,177.34,56.6]
[1747256229511,1.9474,177.42,177.35,5.6376]
[1747256229812,5.6369,177.38,177.35,5.6376]
[1747256231413,5.6371,177.37,177.35,5.6376]
[1747256232015,5.6377,177.35,177.34,56.6]
[1747256232313,56.58,177.4,177.31,56.56]
[1747256232512,5.6382,177.34,177.31,62.1988]
[1747256234619,5.6382,177.34,177.31,5.6388]
[1747256234818,56.58,177.36,177.3,5.6391]
[1747256236620,5.6385,177.33,177.3,5.6391]
[1747256237515,5.638,177.35,177.28,56.56]
[1747256237821,56.58,177.36,177.28,56.56]
[1747256238208,5.6392,177.31,177.28,62.1998]
[1747256238710,56.58,177.32,177.19,56.58]
[1747256238912,9.85270832,177.3,177.17,56.58]
[1747256239115,9.85270832,177.27,177.16,56.58]
[1747256239317,115.0997,177.26,177.16,56.58]
[1747256239829,115.0997,177.26,177.18,5.643]
[1747256241123,5.6412,177.24,177.18,5.643]
[1747256241523,5.6412,177.24,177.19,5.6427]
[1747256242921,56.58,177.27,177.2,66.43270832]
[1747256243421,56.58,177.27,177.24,5.641]
[1747256247327,56.58,177.27,177.2,66.43270832]
[1747256247929,56.58,177.27,177.25,5.6407]
[1747256248831,56.58,177.27,177.26,5.6405]
[1747256249029,118.7998,177.29,177.26,5.6405]
[1747256249932,118.7998,177.29,177.25,5.6408]
[1747256250330,5.6401,177.28,177.25,5.6408]
[1747256252333,5.6401,177.28,177.2,66.43270832]
[1747256252334,113.16,177.29,177.2,66.43270832]
[1747256252630,113.16,177.29,177.2,56.58]
[1747256253027,5.6412,177.24,177.21,5.6419]
[1747256253228,5.6412,177.24,177.2,56.58]
[1747256253434,56.58,177.25,177.17,56.6]
[1747256253633,56.58,177.24,177.17,56.6]
[1747256254340,5.6423,177.21,177.18,5.643]
[1747256254534,56.58,177.24,177.14,72.06880832]
[1747256255138,5.6427,177.2,177.17,5.6433]
[1747256255836,56.58,177.24,177.14,60.2796]
[1747256256038,1.9463,177.23,177.14,56.6]
[1747256256338,5.6431,177.18,177.15,5.6438]
[1747256258939,5.6434,177.17,177.14,62.2442]
[1747256259339,5.6443,177.15,177.11,56.58]
[1747256260042,5.6443,177.15,177.12,5.645]
[1747256260243,5.6444,177.14,177.11,56.58]
[1747256260946,5.6441,177.15,177.12,5.645]
[1747256261654,5.6438,177.16,177.13,5.6446]
[1747256265151,1.9219,177.19,177.11,56.58]
[1747256265354,56.6,177.18,177.11,56.58]
[1747256265851,5.6444,177.14,177.11,62.2251]
[1747256266151,56.6,177.18,177.08,56.6]
[1747256266351,56.6,177.18,177.1,5.6455]
[1747256266352,5.6449,177.13,177.1,5.6455]
[1747256267055,5.645,177.12,177.09,5.6459]
[1747256267354,56.6,177.14,177.08,56.6]
[1747256269552,5.6448,177.13,177.1,5.6456]
[1747256270052,5.6448,177.13,177.09,5.6458]
[1747256270454,5.6448,177.13,177.08,56.6]
[1747256270855,5.6448,177.13,177.1,5.6456]
[1747256271656,5.645,177.12,177.09,5.6458]
[1747256273563,56.6,177.14,177.08,56.6]
[1747256273762,66.45270832,177.14,177.04,544.16]
[1747256274061,1.776,177.13,177.04,544.16]
[1747256274257,5.6464,177.08,177.05,5.6472]
[1747256274463,56.62,177.1,177.04,544.16]
[1747256274656,56.62,177.1,177.04,56.62]
[1747256275665,5.646,177.09,177.06,5.6467]
[1747256275865,56.62,177.1,177.06,5.6467]
[1747256276161,62.2659,177.1,177.06,5.6467]
[1747256276366,56.62,177.1,177.06,5.6467]
[1747256277072,56.62,177.1,177.05,5.6471]
[1747256277269,56.62,177.1,177.04,56.62]
[1747256277669,56.62,177.1,177.01,66.47270832]
[1747256278568,5.6467,177.07,177.04,5.6475]
[1747256279369,5.6464,177.08,177.01,66.47270832]
[1747256279765,5.6461,177.09,177.01,66.47270832]
[1747256280070,56.62,177.1,177.01,66.47270832]
[1747256280270,62.2657,177.1,177.07,5.6464]
[1747256280573,56.62,177.1,177.01,66.47270832]
[1747256281072,56.62,177.1,177.07,5.6464]
[1747256281677,62.2657,177.1,177.07,5.6464]
[1747256283875,5.6459,177.09,177.06,5.6469]
[1747256284974,62.2657,177.1,177.06,5.6469]
[1747256285676,5.646,177.09,177.06,5.6469]
[1747256286576,5.6457,177.1,177.07,5.6466]
[1747256286775,56.62,177.11,177.01,66.47270832]
[1747256287967,5.6459,177.1,177.06,5.6467]
[1747256288774,1.776,177.13,177.05,56.62]
[1747256288981,56.62,177.13,177.05,56.62]
[1747256289478,5.645,177.12,177.05,56.62]
[1747256289680,56.62,177.13,177.05,56.62]
[1747256290681,5.6464,177.08,177.05,62.2672]
[1747256291978,56.62,177.13,177.05,56.62]
[1747256293080,5.6468,177.07,177.04,5.6475]
[1747256294186,5.6464,177.08,177.05,5.6472]
[1747256294380,1.8782,177.12,177.04,9.85270832]
[1747256294882,1.8782,177.12,177.05,5.647]
[1747256295482,5.6462,177.09,177.06,5.6469]
[1747256296283,1.8782,177.12,177.02,56.62]
[1747256296681,5.6464,177.08,177.05,5.6471]
[1747256297685,5.6467,177.07,177.05,5.6471]
[1747256297986,5.6467,177.07,177.04,5.6474]
[1747256298286,5.6472,177.06,177.02,56.62]
[1747256298483,5.6472,177.06,177.03,5.6477]
[1747256299489,5.6467,177.07,177.04,5.6475]
[1747256300386,5.647,177.06,177.03,5.6478]
[1747256302187,5.6472,177.05,177.03,5.6478]
[1747256302388,56.7,177.09,177.02,56.62]
[1747256302583,56.7,177.09,176.99,13.45090832]
[1747256302584,9.85270832,177.08,176.99,56.62]
[1747256302886,56.62,177.07,176.99,56.62]
[1747256303081,56.62,177.07,176.99,62.2691]
[1747256303280,56.62,177.07,176.99,56.62]
[1747256303579,5.6478,177.04,177.01,5.6484]
[1747256303788,5.6478,177.04,176.99,56.62]
[1747256304187,5.6479,177.03,177.0,5.6486]
[1747256304385,57.04,177.05,176.99,56.62]
[1747256304789,5.6485,177.02,176.99,56.62]
[1747256306189,5.6485,177.01,176.99,56.62]
[1747256306592,5.6485,177.01,176.96,56.62]
[1747256306787,57.04,177.05,176.96,56.62]
[1747256308595,5.6482,177.02,176.99,5.6489]
[1747256309088,57.04,177.05,176.99,5.6489]
[1747256309286,57.04,177.05,176.96,56.62]
[1747256309792,62.6873,177.05,177.01,5.6483]
[1747256310091,57.04,177.05,176.96,58.5217]
[1747256310294,5.6479,177.03,176.96,58.5217]
[1747256310491,57.04,177.05,176.96,58.5217]
[1747256310894,5.6477,177.04,176.96,58.5217]
[1747256311093,57.04,177.05,176.96,58.5217]
[1747256311591,5.6478,177.04,177.0,5.6485]
[1747256311891,5.6478,177.04,176.96,58.5217]
[1747256312187,5.6478,177.04,177.0,5.6485]
[1747256312387,62.6873,177.05,176.96,58.5217]
[1747256312589,57.04,177.05,176.96,58.5217]
[1747256313091,5.6477,177.04,177.0,5.6487]
[1747256314794,5.6477,177.04,177.01,5.6485]
[1747256317899,5.6477,177.04,177.02,5.6481]
[1747256318500,5.6477,177.04,177.01,5.6484]
[1747256319602,5.6477,177.04,177.02,5.6481]
[1747256319801,5.6474,177.05,177.02,5.6481]
[1747256320403,5.6476,177.04,177.01,5.6484]
[1747256320597,5.6476,177.04,176.96,58.5217]
[1747256320902,5.6476,177.04,176.99,5.6489]
[1747256321403,5.6473,177.05,176.96,58.5217]
[1747256321601,57.16,177.06,176.98,9.85270832]
[1747256322108,5.6477,177.04,176.99,5.649]
[1747256323604,5.6479,177.03,176.99,5.649]
[1747256323905,57.16,177.06,176.98,9.85270832]
[1747256324903,5.6477,177.04,176.99,5.649]
[1747256326708,5.6479,177.03,176.99,5.649]
[1747256327009,57.08,177.06,176.99,5.649]
[1747256327209,5.6477,177.04,176.99,5.649]
[1747256327909,5.6485,177.01,176.97,5.6496]
[1747256328111,57.08,177.06,176.96,56.62]
[1747256329012,5.6482,177.03,176.98,5.6494]
[1747256329908,5.6482,177.02,176.98,5.6494]
[1747256330608,5.6482,177.02,176.96,56.62]
[1747256330812,66.93270832,177.06,176.96,56.62]
[1747256331013,57.06,177.05,176.96,56.62]
[1747256331213,5.6487,177.01,176.96,62.2699]
[1747256332318,5.6489,177.0,176.96,56.62]
[1747256332817,5.6486,177.01,176.96,62.27]
[1747256333714,57.06,177.05,176.96,62.27]
[1747256334718,5.649,177.0,176.96,56.62]
[1747256336618,5.6487,177.01,176.96,62.2699]
[1747256337120,57.06,177.05,176.96,62.2699]
[1747256337418,5.649,177.0,176.96,56.62]
[1747256338114,5.6486,177.01,176.96,62.2701]
[1747256338314,57.06,177.05,176.96,56.62]
[1747256338517,5.648,177.03,176.98,5.6492]
[1747256339517,58.5428,177.07,176.98,5.6492]
[1747256339719,57.18,177.06,176.98,5.6492]
[1747256340021,5.648,177.03,176.98,5.6492]
[1747256340619,5.648,177.03,176.97,5.6497]
[1747256340816,5.6483,177.02,176.97,5.6497]
[1747256341618,57.18,177.06,176.96,66.47270832]
[1747256341823,67.03270832,177.06,176.96,56.62]
[1747256342118,5.6495,176.98,176.96,56.62]
[1747256342622,57.16,177.01,176.93,57.1]
[1747256342623,5.65,176.97,176.93,57.1]
[1747256344826,5.6501,176.96,176.93,57.1]
[1747256345325,5.6499,176.97,176.93,57.1]
[1747256345826,59.0424,177.01,176.93,57.1]
[1747256346227,5.6504,176.95,176.93,57.1]
[1747256347027,5.6502,176.96,176.93,57.1]
[1747256347722,5.6509,176.94,176.9,58.9009]
[1747256348025,5.6509,176.94,176.9,57.1]
[1747256349228,5.6509,176.94,176.9,62.752]
[1747256350829,5.6506,176.95,176.9,62.752]
[1747256352125,5.6506,176.95,176.91,5.6517]
[1747256352328,5.6502,176.96,176.91,5.6517]
[1747256352632,57.32,176.97,176.9,57.1]
[1747256353332,5.6505,176.95,176.9,62.7518]
[1747256353534,57.32,176.97,176.9,62.7518]
[1747256353828,5.6506,176.95,176.9,62.7518]
[1747256355831,5.6506,176.95,176.91,5.6517]
[1747256356831,5.6506,176.95,176.9,62.7519]
[1747256362631,5.6502,176.96,176.91,5.6515]
[1747256362932,114.26,176.99,176.9,66.95270832]
[1747256363131,57.16,176.99,176.9,66.95270832]
[1747256363735,57.16,176.99,176.92,5.6513]
[1747256363937,57.16,176.99,176.9,66.95270832]
[1747256364841,5.6504,176.95,176.9,66.95270832]
[1747256365641,5.6504,176.95,176.9,72.60460832]
[1747256365835,5.6504,176.95,176.9,66.95270832]
[1747256366241,5.6501,176.96,176.92,5.6514]
[1747256366442,57.16,176.99,176.9,66.95270832]
[1747256368542,5.6499,176.97,176.92,5.6511]
[1747256370249,5.6501,176.96,176.92,5.6511]
[1747256370650,57.02,177.0,176.91,5.6516]
[1747256371551,5.6506,176.95,176.91,5.6516]
[1747256372151,5.6506,176.95,176.9,72.60460832]
[1747256373753,5.6508,176.94,176.9,72.60460832]
[1747256375653,57.02,177.0,176.9,66.95270832]
[1747256375654,5.6512,176.93,176.9,66.95270832]
[1747256377556,5.651,176.94,176.9,66.95270832]
[1747256377755,5.651,176.94,176.9,72.60470832]
[1747256379455,5.651,176.94,176.9,66.95270832]
[1747256380257,5.6511,176.93,176.9,57.1]
[1747256380756,56.9,176.96,176.87,488.12]
[1747256381258,6.34140877,176.93,176.87,494.46140877]
[1747256381449,6.34140877,176.93,176.87,6.34140877]
[1747256381857,56.98,176.92,176.86,57.28]
[1747256383362,5.6524,176.89,176.86,57.28]
[1747256383859,56.98,176.92,176.86,57.28]
[1747256384057,5.6525,176.89,176.85,5.6536]
[1747256384359,56.98,176.92,176.85,5.6536]
[1747256384561,5.6528,176.88,176.84,5.6538]
[1747256385661,5.6528,176.88,176.83,62.5541]
[1747256386461,56.98,176.92,176.83,62.5541]
[1747256386854,5.6529,176.88,176.83,62.5541]
[1747256388360,56.98,176.92,176.83,62.5541]
[1747256388862,5.6529,176.88,176.83,62.5541]
[1747256389166,56.98,176.92,176.83,62.5541]
[1747256389459,5.653,176.87,176.83,56.9]
[1747256389961,5.6528,176.88,176.83,62.5542]
[1747256390364,56.98,176.92,176.83,56.9]
[1747256390557,5.6532,176.87,176.83,56.9]
[1747256391258,5.6535,176.86,176.83,56.9]
[1747256392162,5.6531,176.87,176.83,56.9]
[1747256392365,66.8899037,176.92,176.83,56.9]
[1747256392868,5.6531,176.87,176.83,62.5542]
[1747256393467,5.6528,176.88,176.84,5.6539]
[1747256393965,5.653,176.87,176.83,62.5541]
[1747256394270,56.98,176.92,176.83,62.5541]
[1747256395968,5.653,176.87,176.83,62.5541]
[1747256399671,56.98,176.92,176.83,62.5541]
[1747256399868,56.98,176.92,176.83,56.9]
[1747256400175,5.6531,176.87,176.83,56.9]
[1747256400473,56.98,176.92,176.83,56.9]
[1747256401075,56.98,176.92,176.81,5.6548]
[1747256401375,56.98,176.92,176.81,62.5748]
[1747256401376,5.6538,176.85,176.81,62.5748]
[1747256401574,57.06,176.88,176.81,62.5748]
[1747256401773,57.06,176.88,176.82,5.6544]
[1747256402377,5.6535,176.86,176.83,5.6542]
[1747256402571,5.6535,176.86,176.81,56.92]
[1747256402873,5.6532,176.87,176.81,56.92]
[1747256403076,56.92,176.93,176.81,56.92]
[1747256403375,63.40228368,176.92,176.85,6.34228368]
[1747256403577,5.6526,176.89,176.85,11.99558368]
[1747256403974,5.6522,176.9,176.85,11.99558368]
[1747256404278,5.6522,176.9,176.86,5.6531]
[1747256404475,6.34228368,176.92,176.85,6.34228368]
[1747256404781,6.34228368,176.92,176.88,5.6526]
[1747256405079,63.40228368,176.94,176.88,5.6526]
[1747256405278,57.08,176.94,176.88,5.6526]
[1747256405779,5.6514,176.92,176.86,1.8193]
[1747256405982,57.08,176.94,176.86,1.8193]
[1747256406781,5.6518,176.91,176.86,7.4724]
[1747256407181,57.08,176.94,176.86,7.4724]
[1747256407478,5.6522,176.9,176.86,7.4724]
[1747256410684,5.6518,176.91,176.87,5.6529]
[1747256413288,57.08,176.94,176.87,5.6529]
[1747256413786,5.6514,176.92,176.87,5.6529]
[1747256414286,5.6514,176.92,176.88,5.6526]